fUST/lending_fUST_20240801
["ID","MTS","AMOUNT","RATE_DAILY","PERIOD"]
[333788885,1722501040472,-551.9,0.00013698,2]
[333788886,1722501040482,-500.0,0.00013698,2]
[333788887,1722501040492,-500.0,0.00013698,2]
[333788888,1722501040501,-500.0,0.00013698,2]
[333788889,1722501040511,-500.0,0.00013698,2]
[333788890,1722501040520,-500.0,0.00013698,2]
[333788891,1722501040531,-500.0,0.00013698,2]
[333788892,1722501040540,-775.28,0.00013698,2]
[333788893,1722501040549,-500.0,0.00013698,2]
[333788894,1722501040559,-550.02,0.00013698,2]
[333788895,1722501040570,-500.0,0.00013698,2]
[333788896,1722501040580,-500.0,0.00013698,2]
[333788897,1722501040590,-610.85,0.00013698,2]
[333788898,1722501040600,-1117.36,0.00013698,2]
[333788899,1722501040610,-500.0,0.00013698,2]
[333788900,1722501040622,-500.0,0.00013698,2]
[333788901,1722501040632,-523.75185787,0.00013698,2]
[333788902,1722501040642,-622.19503766,0.00013698,2]
[333788903,1722501040652,-500.0,0.00013698,2]
[333788904,1722501040662,-210.58092546,0.00013698,2]
[333788905,1722501040672,-500.0,0.00013698,2]
[333788906,1722501040683,-506.29276197,0.00013698,2]
[333788907,1722501040696,-500.0,0.00013698,2]
[333788908,1722501040706,-500.0,0.00013698,2]
[333788909,1722501040717,-500.0,0.00013698,2]
[333788910,1722501040832,-500.0,0.00013698,2]
[333788911,1722501040842,-500.0,0.00013698,2]
[333788912,1722501040852,-507.29826954,0.00013698,2]
[333788913,1722501040861,-500.0,0.00013698,2]
[333788914,1722501040874,-500.0,0.00013698,2]
[333788915,1722501040885,-1190.69,0.00013698,2]
[333788916,1722501040896,-503.48874314,0.00013698,2]
[333788917,1722501040906,-500.0,0.00013698,2]
[333788918,1722501040916,-500.0,0.00013698,2]
[333788919,1722501040925,-500.0,0.00013698,2]
[333788920,1722501040934,-500.0,0.00013698,2]
[333788921,1722501040944,-960.14,0.00013698,2]
[333788922,1722501040955,-791.28,0.00013698,2]
[333788923,1722501040968,-500.0,0.00013698,2]
[333788924,1722501040977,-5216.27,0.00013698,2]
[333788925,1722501040987,-2589.71,0.00013698,2]
[333788926,1722501040996,-3921.54,0.00013698,2]
[333788927,1722501041006,-500.0,0.00013698,2]
[333788928,1722501041015,-500.0,0.00013698,2]
[333788929,1722501041024,-500.0,0.00013698,2]
[333788930,1722501041035,-500.0,0.00013698,2]
[333788931,1722501041046,-1204.67,0.00013698,2]
[333788932,1722501041055,-4657.32,0.00013698,2]
[333788933,1722501041065,-788.69,0.00013698,2]
[333788934,1722501041074,-500.0,0.00013698,2]
[333788935,1722501041083,-968.48,0.00013698,2]
[333788936,1722501041092,-629.63,0.00013698,2]
[333788937,1722501041102,-622.50676717,0.00013698,2]
[333788938,1722501041111,-500.0,0.00013698,2]
[333788939,1722501041123,-500.0,0.00013698,2]
[333788940,1722501041132,-500.0,0.00013698,2]
[333788941,1722501041141,-847.92,0.00013698,2]
[333788942,1722501041150,-548.14,0.00013698,2]
[333788943,1722501041160,-506.33901798,0.00013698,2]
[333788944,1722501041168,-656.88,0.00013698,2]
[333788945,1722501041178,-570.57,0.00013698,2]
[333788946,1722501041188,-500.0,0.00013698,2]
[333788947,1722501041197,-1550.29,0.00013698,2]
[333788948,1722501041207,-549.7,0.00013698,2]
[333788949,1722501041217,-500.0,0.00013698,2]
[333788950,1722501041226,-701.25,0.00013698,2]
[333788951,1722501041236,-500.0,0.00013698,2]
[333788952,1722501041245,-1229.05,0.00013698,2]
[333788953,1722501041255,-1018.02,0.00013698,2]
[333788954,1722501041264,-1552.03,0.00013698,2]
[333788955,1722501041274,-500.0,0.00013698,2]
[333788956,1722501041283,-4167.13,0.00013698,2]
[333788957,1722501041293,-711.78,0.00013698,2]
[333788958,1722501041303,-500.0,0.00013698,2]
[333788959,1722501041313,-1589.72,0.00013698,2]
[333788960,1722501041323,-500.0,0.00013698,2]
[333788961,1722501041332,-500.0,0.00013698,2]
[333788962,1722501041342,-2938.67,0.00013698,2]
[333788963,1722501041353,-500.0,0.00013698,2]
[333788964,1722501041362,-500.0,0.00013698,2]
[333788965,1722501041378,-500.0,0.00013698,2]
[333788966,1722501041388,-500.0,0.00013698,2]
[333788967,1722501041397,-667.04,0.00013698,2]
[333788968,1722501041407,-500.0,0.00013698,2]
[333788969,1722501041420,-503.94988963,0.00013698,2]
[333788970,1722501041430,-1049.01,0.00013698,2]
[333788971,1722501041439,-500.0,0.00013698,2]
[333788972,1722501041448,-500.0,0.00013698,2]
[333788973,1722501041459,-807.59,0.00013698,2]
[333788974,1722501041468,-500.0,0.00013698,2]
[333788975,1722501041477,-1284.14,0.00013698,2]
[333788976,1722501041487,-500.0,0.00013698,2]
[333788977,1722501041496,-739.6,0.00013698,2]
[333788978,1722501041506,-500.0,0.00013698,2]
[333788979,1722501041516,-1088.95,0.00013698,2]
[333788980,1722501041526,-556.77,0.00013698,2]
[333788981,1722501041535,-612.90227652,0.00013698,2]
[333788982,1722501041545,-758.48,0.00013698,2]
[333788983,1722501041555,-1203.68,0.00013698,2]
[333788984,1722501041565,-500.0,0.00013698,2]
[333788985,1722501041575,-569.36,0.00013698,2]
[333788986,1722501041585,-500.0,0.00013698,2]
[333788987,1722501041594,-558.53,0.00013698,2]
[333788988,1722501041604,-501.7600935,0.00013698,2]
[333788989,1722501041614,-562.32,0.00013698,2]
[333788990,1722501041623,-1089.73,0.00013698,2]
[333788991,1722501041633,-2917.69,0.00013698,2]
[333788992,1722501041642,-500.0,0.00013698,2]
[333788993,1722501041652,-783.18,0.00013698,2]
[333788994,1722501041662,-500.0,0.00013698,2]
[333788995,1722501041671,-500.0,0.00013698,2]
[333788996,1722501041680,-165.2734714,0.00013699,2]
[333788997,1722501041690,-150.112233,0.000137,2]
[333788998,1722501041699,-32677.87901865,0.00013752,2]
[333789024,1722501046539,-209.99586275,0.0001212,2]
[333789025,1722501046551,-920.14,0.00013698,2]
[333789026,1722501046563,-17863.43084115,0.00013752,2]
[333789027,1722501046573,-500.0,0.00013761,2]
[333789028,1722501046583,-446.99612533,0.00013761,2]
[333789029,1722501046594,-500.0,0.00013761,2]
[333789030,1722501046604,-500.0,0.00013761,2]
[333789031,1722501046615,-500.0,0.00013761,2]
[333789032,1722501046629,-500.0,0.00013761,2]
[333789033,1722501046639,-162.64314517,0.00013761,2]
[333789034,1722501046648,-500.0,0.00013761,2]
[333789035,1722501046659,-500.0,0.00013761,2]
[333789036,1722501046669,-500.0,0.00013761,2]
[333789037,1722501046679,-500.0,0.00013761,2]
[333789038,1722501046689,-500.0,0.00013761,2]
[333789039,1722501046699,-569.37473165,0.00013761,2]
[333789040,1722501046709,-500.0,0.00013761,2]
[333789041,1722501046719,-500.0,0.00013761,2]
[333789042,1722501046729,-4203.65473782,0.00013762,2]
[333789043,1722501151829,273.37336231,9.9e-05,2]
[333789044,1722501160884,273.37336231,9.9e-05,2]
[333789045,1722501169063,273.37336231,9.9e-05,2]
[333789046,1722501176995,273.37336231,9.9e-05,2]
[333789047,1722501185225,273.37336231,9.9e-05,2]
[333789051,1722501193168,200.0,0.000178,120]
[333789052,1722501193205,273.37336231,9.9e-05,2]
[333789053,1722501193685,200.0,0.0001779,120]
[333789054,1722501194175,200.0,0.0001778,120]
[333789055,1722501194742,200.0,0.0002299,120]
[333789056,1722501195272,200.0,0.0002298,120]
[333789058,1722501200583,200.0,0.0002297,120]
[333789059,1722501201168,200.0,0.0002489,120]
[333789060,1722501201407,273.37336231,9.9e-05,2]
[333789061,1722501201628,200.0,0.0002488,120]
[333789063,1722501914980,150.5,0.000178,120]
[333789064,1722501915970,258.53,0.0001779,120]
[333789066,1722501964657,258.8187254,9.999e-05,2]
[333789070,1722502026965,724.66352433,0.000249,120]
[333789071,1722502033488,3105.0,0.000178,120]
[333789072,1722502033895,3105.0,0.0001779,120]
[333789073,1722502034616,3105.0,0.0001778,120]
[333789074,1722502035190,3105.0,0.0002259,120]
[333789075,1722502035662,3105.0,0.0002258,120]
[333789076,1722502036120,3105.0,0.0002257,120]
[333789077,1722502036596,3105.0,0.0002489,120]
[333789078,1722502037081,3105.0,0.0002488,120]
[333789087,1722502153145,243.0,0.000178,120]
[333789088,1722502153600,243.0,0.0001779,120]
[333789090,1722502154034,233.0,0.000178,120]
[333789091,1722502154105,243.0,0.0001778,120]
[333789092,1722502154628,1244.0,0.000178,120]
[333789093,1722502154671,243.0,0.0002299,120]
[333789094,1722502154722,233.0,0.0001779,120]
[333789095,1722502155101,1244.0,0.0001779,120]
[333789096,1722502155181,243.0,0.0002298,120]
[333789097,1722502155217,233.0,0.0001778,120]
[333789098,1722502155717,233.0,0.0002299,120]
[333789099,1722502155755,1244.0,0.0001778,120]
[333789100,1722502156205,233.0,0.0002298,120]
[333789101,1722502156242,243.0,0.0002297,120]
[333789102,1722502156284,1244.0,0.0002299,120]
[333789103,1722502156668,243.0,0.0002489,120]
[333789104,1722502156729,233.0,0.0002297,120]
[333789105,1722502156768,1244.0,0.0002298,120]
[333789106,1722502157139,243.0,0.0002488,120]
[333789107,1722502157189,233.0,0.0002489,120]
[333789108,1722502157230,1244.0,0.0002297,120]
[333789109,1722502157642,233.0,0.0002488,120]
[333789110,1722502157694,1244.0,0.0002489,120]
[333789111,1722502158210,1244.0,0.0002488,120]
[333789114,1722502166101,-169.200419,0.00012252,2]
[333789115,1722502181756,459.55767833,0.00012119,2]
[333789122,1722502216768,8549.26423,0.00027,120]
[333789156,1722502232428,-4564.3926374,0.00012444,2]
[333789158,1722502232439,-208.2165359,0.00012507,2]
[333789160,1722502232449,-179.544491,0.00012986,2]
[333789162,1722502232460,-804.93605513,0.00013,13]
[333789198,1722502235329,204.5700553,0.00012119,2]
[333789205,1722502238485,-2886.2773164,0.00012119,2]
[333789206,1722502238495,-111.7627055,0.00013,13]
[333789220,1722502240502,-83.30123937,0.00013,13]
[333789221,1722502240512,-153.0,0.000135,2]
[333789222,1722502240523,-367.7699373,0.00013509,2]
[333789223,1722502240534,-300.0,0.00013591,2]
[333789224,1722502240544,-5311.63056584,0.00013592,2]
[333789225,1722502240554,-2407.28899413,0.00013596,2]
[333789226,1722502240565,-294.1445528,0.000136,2]
[333789227,1722502240574,-5215.79,0.00013652,2]
[333789228,1722502240583,-5215.79,0.00013652,2]
[333789229,1722502240592,-44941.2875726,0.00013688,2]
[333789230,1722502240602,-5215.79,0.00013696,2]
[333789231,1722502240611,-5215.79,0.00013697,2]
[333789232,1722502240623,-5215.79,0.00013697,2]
[333789234,1722502240632,-500.0,0.00013698,2]
[333789236,1722502240642,-500.0,0.00013698,2]
[333789237,1722502240652,-500.0,0.00013698,2]
[333789238,1722502240662,-500.0,0.00013698,2]
[333789239,1722502240672,-500.0,0.00013698,2]
[333789240,1722502240681,-523.75185787,0.00013698,2]
[333789241,1722502240690,-500.0,0.00013698,2]
[333789242,1722502240700,-500.0,0.00013698,2]
[333789243,1722502240709,-500.0,0.00013698,2]
[333789244,1722502240719,-591.74,0.00013698,2]
[333789245,1722502240728,-569.36,0.00013698,2]
[333789246,1722502240738,-1089.73,0.00013698,2]
[333789247,1722502240747,-825.11,0.00013698,2]
[333789248,1722502240756,-500.0,0.00013698,2]
[333789249,1722502240766,-503.48874314,0.00013698,2]
[333789250,1722502240775,-500.0,0.00013698,2]
[333789251,1722502240785,-677.76,0.00013698,2]
[333789252,1722502240795,-500.0,0.00013698,2]
[333789253,1722502240805,-500.0,0.00013698,2]
[333789254,1722502240815,-500.0,0.00013698,2]
[333789255,1722502240824,-500.0,0.00013698,2]
[333789256,1722502240833,-501.67,0.00013698,2]
[333789257,1722502240843,-500.0,0.00013698,2]
[333789258,1722502240852,-551.9,0.00013698,2]
[333789259,1722502240862,-772.81,0.00013698,2]
[333789260,1722502240875,-500.0,0.00013698,2]
[333789261,1722502240885,-500.0,0.00013698,2]
[333789262,1722502240894,-500.0,0.00013698,2]
[333789263,1722502240906,-500.0,0.00013698,2]
[333789264,1722502240915,-500.0,0.00013698,2]
[333789265,1722502240924,-500.0,0.00013698,2]
[333789266,1722502240933,-775.28,0.00013698,2]
[333789267,1722502240942,-500.0,0.00013698,2]
[333789268,1722502240951,-500.0,0.00013698,2]
[333789269,1722502240960,-550.02,0.00013698,2]
[333789270,1722502240969,-610.85,0.00013698,2]
[333789271,1722502240979,-500.0,0.00013698,2]
[333789272,1722502240989,-500.0,0.00013698,2]
[333789273,1722502241001,-1117.36,0.00013698,2]
[333789274,1722502241013,-500.0,0.00013698,2]
[333789275,1722502241022,-500.0,0.00013698,2]
[333789276,1722502241032,-506.29276197,0.00013698,2]
[333789277,1722502241168,-622.19503766,0.00013698,2]
[333789278,1722502241179,-500.0,0.00013698,2]
[333789279,1722502241189,-500.0,0.00013698,2]
[333789280,1722502241200,-500.0,0.00013698,2]
[333789281,1722502241212,-507.29826954,0.00013698,2]
[333789282,1722502241223,-500.0,0.00013698,2]
[333789283,1722502241235,-210.58092546,0.00013698,2]
[333789284,1722502241245,-562.32,0.00013698,2]
[333789285,1722502241255,-1190.69,0.00013698,2]
[333789286,1722502241264,-500.0,0.00013698,2]
[333789287,1722502241274,-500.0,0.00013698,2]
[333789288,1722502241283,-612.90227652,0.00013698,2]
[333789289,1722502241293,-500.0,0.00013698,2]
[333789290,1722502241303,-501.7600935,0.00013698,2]
[333789291,1722502241312,-500.0,0.00013698,2]
[333789292,1722502241323,-500.0,0.00013698,2]
[333789293,1722502241333,-500.0,0.00013698,2]
[333789294,1722502241343,-500.0,0.00013698,2]
[333789295,1722502241353,-500.0,0.00013698,2]
[333789296,1722502241363,-500.0,0.00013698,2]
[333789297,1722502241378,-500.0,0.00013698,2]
[333789298,1722502241391,-500.0,0.00013698,2]
[333789299,1722502241403,-921.8,0.00013698,2]
[333789300,1722502241413,-173.0145936,0.00013698,2]
[333789301,1722502241422,-632.44886328,0.00013698,2]
[333789302,1722502241433,-500.0,0.00013698,2]
[333789303,1722502241444,-2589.71,0.00013698,2]
[333789304,1722502241455,-500.0,0.00013698,2]
[333789305,1722502241465,-3921.54,0.00013698,2]
[333789306,1722502241477,-629.64,0.00013698,2]
[333789307,1722502241487,-1204.67,0.00013698,2]
[333789308,1722502241497,-791.28,0.00013698,2]
[333789309,1722502241507,-495.79675713,0.00013698,2]
[333789328,1722502243490,-944.54862993,0.00013698,2]
[333789352,1722502246616,-3216.97461294,0.00013698,2]
[333789354,1722502246629,-690.1,0.00013698,2]
[333789356,1722502246640,-968.48,0.00013698,2]
[333789357,1722502246651,-644.445387,0.00013698,2]
[333789360,1722502246672,-481.53256265,0.00013698,2]
[333789361,1722502254357,5000.0,0.00025,60]
[333789362,1722502274573,249.0,0.000178,120]
[333789363,1722502275055,249.0,0.0001779,120]
[333789364,1722502275576,249.0,0.0001778,120]
[333789365,1722502276043,249.0,0.0002299,120]
[333789366,1722502276509,249.0,0.0002298,120]
[333789367,1722502277006,249.0,0.0002297,120]
[333789368,1722502277483,249.0,0.0002489,120]
[333789369,1722502277971,249.0,0.0002488,120]
[333789370,1722502294520,7287.09353,0.00027,120]
[333789373,1722502394308,150.5,0.000178,120]
[333789374,1722502394557,150.5,0.000178,120]
[333789375,1722502394875,150.5,0.000178,120]
[333789376,1722502395049,150.5,0.0001779,120]
[333789377,1722502395137,150.5,0.0001779,120]
[333789378,1722502395397,150.5,0.0001779,120]
[333789379,1722502395545,172.31,0.0001778,120]
[333789380,1722502395593,186.56,0.0001778,120]
[333789381,1722502395884,198.81,0.0001778,120]
[333789382,1722502512904,150.5,0.000178,120]
[333789383,1722502513226,150.5,0.000178,120]
[333789384,1722502513309,150.5,0.000178,120]
[333789385,1722502513378,150.5,0.0001779,120]
[333789386,1722502513689,150.5,0.0001779,120]
[333789387,1722502513864,150.5,0.0001778,120]
[333789388,1722502513903,150.5,0.0001779,120]
[333789389,1722502514166,254.33,0.0001778,120]
[333789390,1722502514290,150.5,0.0002299,120]
[333789391,1722502514332,150.5,0.0001778,120]
[333789392,1722502514790,150.5,0.0002298,120]
[333789393,1722502515356,150.5,0.0002299,120]
[333789394,1722502515579,200.79,0.0002297,120]
[333789395,1722502515886,150.5,0.0002298,120]
[333789396,1722502516394,150.5,0.0002297,120]
[333789397,1722502517488,262.49,0.0002489,120]
[333789402,1722502630288,330.99,0.00027,120]
[333789403,1722502633945,200.0,0.000178,120]
[333789404,1722502634519,200.0,0.0001779,120]
[333789405,1722502635079,200.0,0.0001778,120]
[333789406,1722502635666,200.0,0.0002299,120]
[333789407,1722502636156,200.0,0.0002298,120]
[333789408,1722502636630,200.0,0.0002297,120]
[333789409,1722502637091,200.0,0.0002489,120]
[333789410,1722502638114,200.0,0.0002488,120]
[333789418,1722503258316,500.0,0.000264,120]
[333789419,1722503286684,2508.0,0.00027,120]
[333789425,1722503354518,150.5,0.000178,120]
[333789426,1722503355018,258.53,0.0001779,120]
[333789505,1722503438630,-169.200419,0.00012272,2]
[333789506,1722503438640,-158.093315,0.00012986,2]
[333789507,1722503438651,-8.83864154,0.00013,13]
[333789508,1722503438688,-991.16135846,0.00013,13]
[333789509,1722503438698,-367.7699373,0.00013532,2]
[333789510,1722503438709,-634.1193121,0.00013598,2]
[333789532,1722503440838,-1410.38355772,0.00013598,2]
[333789533,1722503440848,-4545.40759906,0.00013601,2]
[333789534,1722503440859,-300.0,0.00013686,2]
[333789535,1722503440869,-5215.79,0.00013687,2]
[333789536,1722503440881,-3654.92486636,0.00013688,2]
[333789537,1722503441014,-5215.79,0.00013697,2]
[333789538,1722503441025,-5215.79,0.00013697,2]
[333789539,1722503441034,-5215.79,0.00013697,2]
[333789540,1722503441043,-503.48874314,0.00013698,2]
[333789541,1722503441055,-500.0,0.00013698,2]
[333789542,1722503441065,-500.0,0.00013698,2]
[333789543,1722503441075,-500.0,0.00013698,2]
[333789544,1722503441085,-500.0,0.00013698,2]
[333789545,1722503441095,-500.0,0.00013698,2]
[333789546,1722503441104,-500.0,0.00013698,2]
[333789547,1722503441114,-500.0,0.00013698,2]
[333789548,1722503441124,-500.0,0.00013698,2]
[333789549,1722503441134,-500.0,0.00013698,2]
[333789550,1722503441144,-500.0,0.00013698,2]
[333789551,1722503441154,-612.90227652,0.00013698,2]
[333789552,1722503441164,-500.0,0.00013698,2]
[333789553,1722503441174,-562.32,0.00013698,2]
[333789554,1722503441185,-501.7600935,0.00013698,2]
[333789555,1722503441196,-500.0,0.00013698,2]
[333789556,1722503441207,-677.76,0.00013698,2]
[333789557,1722503441218,-825.11,0.00013698,2]
[333789558,1722503441228,-632.44886328,0.00013698,2]
[333789559,1722503441237,-173.0145936,0.00013698,2]
[333789560,1722503441247,-500.0,0.00013698,2]
[333789561,1722503441256,-500.0,0.00013698,2]
[333789562,1722503441266,-500.0,0.00013698,2]
[333789563,1722503441275,-500.0,0.00013698,2]
[333789564,1722503441285,-772.81,0.00013698,2]
[333789565,1722503441294,-501.67,0.00013698,2]
[333789566,1722503441304,-551.9,0.00013698,2]
[333789567,1722503441313,-500.0,0.00013698,2]
[333789568,1722503441324,-500.0,0.00013698,2]
[333789569,1722503441334,-500.0,0.00013698,2]
[333789570,1722503441344,-500.0,0.00013698,2]
[333789571,1722503441353,-500.0,0.00013698,2]
[333789572,1722503441363,-775.28,0.00013698,2]
[333789573,1722503441373,-500.0,0.00013698,2]
[333789574,1722503441382,-500.0,0.00013698,2]
[333789575,1722503441392,-500.0,0.00013698,2]
[333789576,1722503441402,-550.02,0.00013698,2]
[333789577,1722503441413,-610.85,0.00013698,2]
[333789578,1722503441423,-500.0,0.00013698,2]
[333789579,1722503441432,-1117.36,0.00013698,2]
[333789580,1722503441441,-500.0,0.00013698,2]
[333789581,1722503441451,-500.0,0.00013698,2]
[333789582,1722503441461,-506.29276197,0.00013698,2]
[333789583,1722503441470,-500.0,0.00013698,2]
[333789584,1722503441480,-513.36,0.00013698,2]
[333789585,1722503441489,-500.0,0.00013698,2]
[333789586,1722503441499,-507.29826954,0.00013698,2]
[333789587,1722503441508,-622.19503766,0.00013698,2]
[333789588,1722503441517,-1190.69,0.00013698,2]
[333789589,1722503441526,-500.0,0.00013698,2]
[333789590,1722503441536,-210.58092546,0.00013698,2]
[333789591,1722503441546,-500.0,0.00013698,2]
[333789592,1722503441556,-500.0,0.00013698,2]
[333789593,1722503441567,-500.0,0.00013698,2]
[333789594,1722503441577,-500.0,0.00013698,2]
[333789595,1722503441587,-2589.71,0.00013698,2]
[333789596,1722503441596,-5169.35,0.00013698,2]
[333789597,1722503441606,-500.0,0.00013698,2]
[333789598,1722503441615,-1204.67,0.00013698,2]
[333789599,1722503441625,-506.33901798,0.00013698,2]
[333789600,1722503441635,-500.0,0.00013698,2]
[333789601,1722503441644,-3921.54,0.00013698,2]
[333789602,1722503441654,-500.0,0.00013698,2]
[333789603,1722503441663,-500.0,0.00013698,2]
[333789604,1722503441673,-759.94,0.00013698,2]
[333789605,1722503441683,-847.92,0.00013698,2]
[333789606,1722503441692,-629.64,0.00013698,2]
[333789607,1722503441701,-500.0,0.00013698,2]
[333789608,1722503441711,-4483.93,0.00013698,2]
[333789609,1722503441720,-500.0,0.00013698,2]
[333789610,1722503441729,-548.14,0.00013698,2]
[333789611,1722503441740,-500.0,0.00013698,2]
[333789612,1722503441750,-928.13,0.00013698,2]
[333789613,1722503441760,-656.88,0.00013698,2]
[333789614,1722503441769,-570.57,0.00013698,2]
[333789615,1722503441779,-622.50676717,0.00013698,2]
[333789616,1722503441788,-500.0,0.00013698,2]
[333789617,1722503441798,-500.0,0.00013698,2]
[333789618,1722503441807,-500.0,0.00013698,2]
[333789619,1722503441822,-500.0,0.00013698,2]
[333789620,1722503441832,-500.0,0.00013698,2]
[333789621,1722503441843,-500.0,0.00013698,2]
[333789622,1722503441855,-500.0,0.00013698,2]
[333789623,1722503441867,-1550.29,0.00013698,2]
[333789624,1722503441877,-500.0,0.00013698,2]
[333789625,1722503441889,-523.75185787,0.00013698,2]
[333789626,1722503441898,-503.94988963,0.00013698,2]
[333789627,1722503441908,-500.0,0.00013698,2]
[333789628,1722503441917,-1229.05,0.00013698,2]
[333789629,1722503441928,-1552.03,0.00013698,2]
[333789630,1722503441937,-1123.62,0.00013698,2]
[333789631,1722503441946,-500.0,0.00013698,2]
[333789632,1722503441957,-701.25,0.00013698,2]
[333789633,1722503441967,-4167.13,0.00013698,2]
[333789634,1722503441977,-1018.02,0.00013698,2]
[333789635,1722503441987,-711.78,0.00013698,2]
[333789636,1722503441996,-500.0,0.00013698,2]
[333789637,1722503442006,-500.0,0.00013698,2]
[333789638,1722503442015,-500.0,0.00013698,2]
[333789639,1722503442025,-500.0,0.00013698,2]
[333789640,1722503442035,-500.0,0.00013698,2]
[333789641,1722503442044,-549.7,0.00013698,2]
[333789642,1722503442054,-500.0,0.00013698,2]
[333789643,1722503442065,-500.0,0.00013698,2]
[333789644,1722503442075,-2938.67,0.00013698,2]
[333789645,1722503442084,-1589.72,0.00013698,2]
[333789646,1722503442094,-1049.01,0.00013698,2]
[333789647,1722503442105,-844.8,0.00013698,2]
[333789648,1722503442115,-500.0,0.00013698,2]
[333789649,1722503442125,-667.04,0.00013698,2]
[333789650,1722503442136,-500.0,0.00013698,2]
[333789651,1722503442146,-500.0,0.00013698,2]
[333789652,1722503442156,-402.94263181,0.00013698,2]
[333789666,1722503443879,-57.28970212,0.00013698,2]
[333789681,1722503690770,500.0,0.00027,120]
[333789682,1722503708605,292.92,0.00027,120]
[333789683,1722503856171,1000.0,0.00027,120]
[333789684,1722504006382,150.0,0.00027,120]
[333789686,1722504455155,155.07642353,9.999e-05,2]
[333789690,1722504511219,1575.61014769,0.0002,120]
[333789699,1722504525603,201.03081594,0.0002525,120]
[333789700,1722504527072,764.55589968,0.00023,120]
[333789701,1722504528946,611.65028361,0.00025,120]
[333789702,1722504530178,221.71360369,0.000245,120]
[333789708,1722504578347,9999.999999,0.00025,120]
[333789782,1722504632210,500.91,0.00027,120]
[333789787,1722504637948,-158.093315,0.00012986,2]
[333789788,1722504637958,-367.7699373,0.00013551,2]
[333789789,1722504637968,-4545.40759906,0.00013575,2]
[333789790,1722504637979,-1965.23795586,0.00013597,2]
[333789791,1722504637991,-300.0,0.00013686,2]
[333789792,1722504638002,-5215.79,0.00013687,2]
[333789793,1722504638012,-95136.5481086,0.00013688,2]
[333789794,1722504638023,-5215.79,0.00013697,2]
[333789796,1722504638033,-5215.79,0.00013697,2]
[333789797,1722504638042,-5215.79,0.00013697,2]
[333789799,1722504638051,-5289.68224278,0.00013698,5]
[333789801,1722504638061,-500.0,0.00013698,2]
[333789802,1722504638070,-500.0,0.00013698,2]
[333789804,1722504638079,-500.0,0.00013698,2]
[333789805,1722504638092,-500.0,0.00013698,2]
[333789806,1722504638103,-173.0145936,0.00013698,2]
[333789807,1722504638113,-632.44886328,0.00013698,2]
[333789808,1722504638123,-500.0,0.00013698,2]
[333789809,1722504638134,-500.0,0.00013698,2]
[333789810,1722504638144,-500.0,0.00013698,2]
[333789811,1722504638154,-566.7,0.00013698,2]
[333789812,1722504638163,-500.0,0.00013698,2]
[333789813,1722504638173,-500.0,0.00013698,2]
[333789814,1722504638183,-151.0,0.00013698,2]